bitfinex/quotes_SOLUSD_20260102
["timestamp","ask_amount","ask_price","bid_price","bid_amount"]
[1767343984887,2.72446478,127.94,127.91,0.72387348]
[1767343985089,5.86484233,127.93,127.91,0.72387348]
[1767343985293,0.1,127.97,127.9,27.36487423]
[1767343985469,5.8647731,127.96,127.93,0.72387348]
[1767343985795,5.8647731,127.95,127.93,0.72387348]
[1767343986094,2.72446478,127.96,127.93,0.72387348]
[1767343986266,6.55679808,127.95,127.93,0.72387348]
[1767343986468,0.66361469,127.95,127.93,0.72387348]
[1767343986679,2.03085009,127.95,127.91,0.72387348]
[1767343986871,7.9146496,127.97,127.92,0.72387348]
[1767343986872,7.89463406,127.94,127.92,0.72387348]
[1767343987063,2.03085009,127.94,127.92,0.72387348]
[1767343987292,2.03085009,127.95,127.92,0.72387348]
[1767343987495,5.8634246,127.94,127.92,0.72387348]
[1767343987677,7.9146496,127.97,127.92,0.72387348]
[1767343987880,2.03085009,127.95,127.92,0.72387348]
[1767343988481,2.72446478,127.95,127.92,0.72387348]
[1767343990492,0.69361469,127.95,127.92,0.72387348]
[1767343990682,2.72446478,127.95,127.92,0.72387348]
[1767343991398,2.03085009,127.94,127.92,0.72387348]
[1767343991613,2.72446478,127.94,127.92,0.72387348]
[1767343991805,7.9146496,127.97,127.9,69.74217385]
[1767343991806,2.72446478,127.93,127.9,69.74217385]
[1767343992100,2.72446478,127.93,127.91,0.72387348]
[1767343992478,7.81522165,127.96,127.91,8.54179992]
[1767343992796,2.03085009,127.94,127.91,8.54179992]
[1767343993103,2.03085009,127.95,127.92,0.72387348]
[1767343993703,2.72446478,127.95,127.92,0.72387348]
[1767343994511,2.72446478,127.95,127.92,8.54109309]
[1767344000518,0.69361469,127.95,127.92,8.54109309]
[1767344001206,2.72446478,127.95,127.92,8.54109309]
[1767344002124,0.69361469,127.95,127.93,0.72387348]
[1767344002619,2.72446478,127.95,127.93,0.72387348]
[1767344004822,0.79361469,127.97,127.93,7.81637607]
[1767344005004,6.55319016,127.96,127.93,7.81637607]
[1767344005319,2.72446478,127.96,127.93,8.54024955]
[1767344006916,0.69361469,127.96,127.93,8.54024955]
[1767344007112,0.1,127.97,127.94,0.71790836]
[1767344007514,0.1,127.97,127.95,0.71790836]
[1767344008216,0.1,127.97,127.95,8.53299084]
[1767344011114,2.03085009,127.96,127.95,0.71790836]
[1767344011313,2.79377244,127.97,127.95,0.71790836]
[1767344012622,0.76292235,127.97,127.95,0.71790836]
[1767344012824,2.79377244,127.97,127.95,0.71790836]
[1767344013018,0.76292235,127.97,127.95,0.71790836]
[1767344013197,2.79377244,127.97,127.95,0.71790836]
[1767344019625,2.69377244,127.96,127.94,0.71790836]
[1767344020129,0.66292235,127.96,127.94,0.71790836]
[1767344020334,2.69377244,127.96,127.94,0.71790836]
[1767344021014,2.03085009,127.96,127.93,69.0166496]
[1767344021224,2.69377244,127.95,127.92,8.53499502]
[1767344022122,2.69377244,127.95,127.93,0.71790836]
[1767344022832,0.66292235,127.95,127.93,0.71790836]
[1767344023130,2.69377244,127.95,127.93,0.71790836]
[1767344023432,0.66292235,127.95,127.93,0.71790836]
[1767344023631,2.69377244,127.95,127.93,0.71790836]
[1767344025328,0.66292235,127.95,127.93,0.71790836]
[1767344025631,0.66292235,127.93,127.91,7.8177543]
[1767344025833,2.03085009,127.94,127.92,0.71790836]
[1767344026038,0.66292235,127.94,127.92,0.71790836]
[1767344026233,0.66292235,127.96,127.93,8.53467785]
[1767344026423,2.69377244,127.96,127.94,0.71790836]
[1767344026627,2.69377244,127.96,127.93,8.53467785]
[1767344027843,0.66292235,127.96,127.93,8.53467785]
[1767344028045,2.69377244,127.96,127.93,8.53467785]
[1767344029355,2.03085009,127.95,127.93,8.53467785]
[1767344031663,2.69377244,127.96,127.93,8.53467785]
[1767344032044,2.69377244,127.96,127.93,7.81676949]
[1767344032250,2.69377244,127.96,127.94,0.71790836]
[1767344032450,3.83488767,127.96,127.94,0.71790836]
[1767344036367,3.27196532,127.97,127.95,0.69784403]
[1767344036566,3.9455074,127.97,127.95,0.69784403]
[1767344037166,0.77354208,127.97,127.95,0.69784403]
[1767344037363,3.9455074,127.97,127.95,0.69784403]
[1767344038168,0.1,127.97,127.95,8.51315965]
[1767344038371,3.27196532,127.97,127.95,8.51315965]
[1767344039045,0.1,127.97,127.95,8.51315965]
[1767344039577,3.27196532,127.97,127.95,8.51315965]
[1767344040771,0.1,127.97,127.95,8.51315965]
[1767344041275,3.27196532,127.97,127.95,8.51315965]
[1767344041460,0.1,127.97,127.96,0.69784403]
[1767344041642,0.1,127.98,127.96,0.69784403]
[1767344042077,3.27196532,127.98,127.96,0.69784403]
[1767344043846,0.1,127.98,127.96,7.81440038]
[1767344044047,0.1,127.98,127.97,0.69784403]
[1767344046664,3.27196532,127.98,127.97,0.69784403]
[1767344046977,3.27196532,127.98,127.95,0.69784403]
[1767344047760,3.17196532,127.97,127.95,0.69784403]
[1767344049579,3.17196532,127.97,127.95,8.51304223]
[1767344051481,3.8455074,127.97,127.94,8.51384678]
[1767344052276,3.8455074,127.97,127.95,0.69784403]
[1767344054679,3.17196532,127.97,127.95,0.69784403]
[1767344055073,3.17196532,127.96,127.95,0.69784403]
[1767344055277,3.17196532,127.97,127.95,0.69784403]
[1767344055478,3.8455074,127.97,127.95,0.69784403]
[1767344056476,0.67354208,127.97,127.95,0.69784403]
[1767344056677,3.8455074,127.97,127.95,0.69784403]
[1767344058381,7.91278182,128.0,127.95,0.69784403]
[1767344058586,3.17196532,127.97,127.95,0.69784403]
[1767344058775,7.91278182,128.0,127.95,0.69784403]
[1767344058976,3.17196532,127.97,127.95,0.69784403]
[1767344059971,7.91278182,128.0,127.95,0.69784403]
[1767344060172,3.17196532,127.97,127.95,0.69784403]
[1767344060373,0.57062417,127.99,127.95,0.69784403]
[1767344060589,3.17196532,127.97,127.95,0.69784403]
[1767344060784,3.74258949,127.97,127.95,0.69784403]
[1767344061087,3.74258949,127.97,127.94,8.51384678]
[1767344061277,3.17196532,127.97,127.94,7.81600275]
[1767344061584,3.17196532,127.97,127.95,0.69784403]
[1767344062963,3.74258949,127.97,127.94,8.51384678]
[1767344063165,3.17196532,127.97,127.94,8.51384678]
[1767344063367,3.17196532,127.96,127.94,0.69784403]
[1767344063582,3.17196532,127.98,127.94,0.69784403]
[1767344063991,3.17196532,127.95,127.94,8.51400785]
[1767344064289,3.17196532,127.96,127.94,8.51400785]
[1767344064492,7.81326248,127.99,127.93,7.81672439]
[1767344064666,3.17196532,127.94,127.92,61.89784403]
[1767344064991,3.17196532,127.94,127.92,8.51515128]
[1767344066389,3.17196532,127.94,127.91,7.81799702]
[1767344066593,7.81460603,127.97,127.91,7.81799702]
[1767344066594,3.17196532,127.93,127.91,0.65507533]
[1767344066785,3.17196532,127.93,127.9,8.47367576]
[1767344067085,3.17196532,127.94,127.91,0.65507533]
[1767344067689,3.17196532,127.93,127.91,0.65507533]
[1767344068390,3.17196532,127.94,127.91,0.65507533]
[1767344068599,3.17196532,127.94,127.91,8.47307001]
[1767344068981,7.81460862,127.97,127.92,0.65507533]
[1767344069188,3.17196532,127.94,127.92,0.65507533]
[1767344069609,7.81460862,127.97,127.88,0.65507533]
[1767344069610,3.17196532,127.93,127.88,0.65507533]
[1767344069807,3.17196532,127.93,127.89,0.65507533]
[1767344070106,3.17196532,127.92,127.9,0.65507533]
[1767344071701,3.17196532,127.92,127.9,8.47362183]
[1767344071882,3.17196532,127.92,127.9,0.65507533]
[1767344076206,3.17196532,127.92,127.89,0.65507533]
[1767344079089,3.17196532,127.92,127.88,7.81933747]
[1767344079300,7.81617506,127.94,127.87,22.67524709]
[1767344079301,3.17196532,127.9,127.87,22.67524709]
[1767344079502,3.17196532,127.9,127.87,8.47524709]
[1767344079700,3.17196532,127.89,127.87,8.47524709]
[1767344080008,3.17196532,127.89,127.87,0.65507533]
[1767344080397,3.17196532,127.88,127.87,0.65507533]
[1767344080614,3.17196532,127.88,127.86,8.47582745]
[1767344080989,3.17196532,127.88,127.86,0.65507533]
[1767344082409,3.17196532,127.88,127.85,0.65507533]
[1767344082610,3.17196532,127.87,127.85,0.65507533]
[1767344087607,3.17196532,127.88,127.85,0.65507533]
[1767344087990,3.17196532,127.87,127.85,0.65507533]
[1767344090641,27.3634393,127.91,127.85,0.65507533]
[1767344090798,3.17196532,127.87,127.85,0.65507533]
[1767344092497,2.03274959,127.87,127.85,0.65507533]
[1767344096329,2.03274959,127.87,127.84,0.66748793]
[1767344097434,2.03274959,127.87,127.85,0.66748793]
[1767344098717,2.03274959,127.87,127.84,8.48953192]
[1767344099511,2.03274959,127.87,127.85,0.66748793]
[1767344099803,2.03274959,127.88,127.85,0.66748793]
[1767344100706,2.03274959,127.9,127.86,0.66748793]
[1767344100902,2.03274959,127.89,127.87,0.66748793]
[1767344101103,2.00274959,127.89,127.87,0.66748793]
[1767344108916,2.03274959,127.9,127.87,8.48776527]
[1767344110817,2.03274959,127.9,127.87,7.82027734]
[1767344111135,14.2,127.92,127.88,0.66748793]
[1767344111332,7.81707872,127.93,127.89,0.66748793]
[1767344111539,2.03274959,127.92,127.89,0.66748793]
[1767344111737,2.03274959,127.93,127.9,0.66748793]
[1767344112340,2.03274959,127.92,127.9,0.66748793]
[1767344112720,7.81623937,127.94,127.9,0.66748793]
[1767344112916,22.01555295,127.95,127.9,0.66748793]
[1767344113126,2.03274959,127.91,127.9,0.66748793]
[1767344113517,41.55443532,127.95,127.89,0.66748793]
[1767344113725,2.03274959,127.91,127.89,0.66748793]
[1767344114641,2.03274959,127.92,127.89,0.66748793]
[1767344117033,2.03274959,127.9,127.88,7.81950195]
[1767344117343,2.03274959,127.91,127.89,0.66748793]
[1767344118850,2.03274959,127.91,127.88,7.81950195]
[1767344119037,14.2,127.94,127.87,7.82014201]
[1767344119038,2.03274959,127.9,127.87,7.82014201]
[1767344119349,2.03274959,127.9,127.88,0.66748793]
[1767344122027,2.03274959,127.91,127.88,0.66748793]
[1767344123047,2.03274959,127.91,127.88,7.81982359]
[1767344123254,2.03274959,127.91,127.89,0.66748793]
[1767344124753,2.03274959,127.92,127.89,0.66748793]
[1767344127136,2.03274959,127.92,127.9,0.69894884]
[1767344129534,2.03274959,127.92,127.89,8.51802886]
[1767344131468,2.03274959,127.92,127.89,0.69894884]
[1767344131962,2.03274959,127.9,127.87,0.69894884]
[1767344134163,2.03274959,127.89,127.87,0.69894884]
[1767344134379,2.03274959,127.89,127.85,7.82125791]
[1767344134672,2.03274959,127.89,127.86,0.69894884]
[1767344136371,2.03274959,127.88,127.86,0.69894884]
[1767344136973,7.81839127,127.91,127.86,0.69894884]
[1767344137264,2.03274959,127.88,127.86,0.69894884]
[1767344137769,7.81839127,127.91,127.86,0.69894884]
[1767344138064,2.03274959,127.88,127.86,0.69894884]
[1767344138240,7.81839127,127.91,127.85,0.69894884]
[1767344138442,2.03274959,127.87,127.85,0.69894884]
[1767344139246,2.00274959,127.87,127.85,0.69894884]
[1767344142145,2.03274959,127.86,127.83,22.0225589]
[1767344142350,2.03274959,127.86,127.84,0.69894884]
[1767344145658,2.03274959,127.85,127.83,0.69894884]
[1767344146764,7.82023497,127.88,127.83,0.69894884]
[1767344146942,2.03274959,127.85,127.83,0.69894884]
[1767344148044,2.03274959,127.86,127.84,0.69894884]
[1767344151150,7.82023497,127.88,127.84,0.69894884]
[1767344151360,22.03894497,127.9,127.85,0.69894884]
[1767344151563,2.03274959,127.88,127.85,0.69894884]
[1767344152662,3.17590094,127.88,127.85,0.69894884]
[1767344153667,7.81922026,127.89,127.85,0.69894884]
[1767344153874,3.17590094,127.89,127.86,0.69894884]
[1767344156972,7.81808113,127.91,127.86,0.69894884]
[1767344157177,3.17590094,127.88,127.86,0.69894884]
[1767344157553,3.17590094,127.89,127.86,0.69894884]
[1767344157861,3.17590094,127.89,127.86,7.82096918]
[1767344158062,3.17590094,127.89,127.87,0.71492728]
[1767344158561,7.81808113,127.91,127.87,0.71492728]
[1767344158762,3.17590094,127.89,127.87,0.71492728]
[1767344159356,3.14590094,127.89,127.87,0.71492728]
[1767344159558,7.81808113,127.91,127.87,0.71492728]
[1767344159771,3.17590094,127.89,127.87,0.71492728]
[1767344162382,3.14590094,127.89,127.86,0.71492728]
[1767344162964,3.17590094,127.9,127.86,0.71492728]
[1767344163273,3.17590094,127.9,127.87,0.71492728]
[1767344169666,3.17590094,127.91,127.88,0.71492728]
[1767344170479,3.17590094,127.9,127.88,0.71492728]
[1767344174999,7.81769749,127.92,127.88,0.71492728]
[1767344175192,9.02756822,127.91,127.88,0.71492728]
[1767344175372,3.17590094,127.91,127.88,0.71492728]
[1767344176866,33.76228903,127.93,127.89,3.89082822]
[1767344176867,3.17590094,127.93,127.89,3.89082822]
[1767344177070,3.17590094,127.93,127.9,0.71492728]
[1767344178593,3.17590094,127.92,127.88,7.81981438]
[1767344178793,3.17590094,127.91,127.88,0.71492728]
[1767344178997,3.17590094,127.91,127.89,0.71492728]
[1767344179898,41.57686991,127.94,127.89,0.71492728]
[1767344180196,3.17590094,127.91,127.89,0.71492728]
[1767344181793,3.17590094,127.92,127.89,0.71492728]
[1767344188100,22.03645886,127.94,127.89,0.71492728]
[1767344188303,3.17590094,127.93,127.9,0.66037592]
[1767344193411,3.17590094,127.93,127.89,7.81895919]
[1767344193784,3.17590094,127.93,127.89,8.47933511]
[1767344195208,3.17590094,127.93,127.89,11.65523605]
[1767344195507,17.39590094,127.94,127.9,0.66037592]
[1767344196285,5.85292607,127.93,127.9,0.66037592]
[1767344196506,17.39590094,127.94,127.9,0.66037592]
[1767344196709,5.85292607,127.93,127.9,0.66037592]
[1767344196897,17.39590094,127.94,127.9,0.66037592]
[1767344197208,5.85292743,127.93,127.9,0.66037592]
[1767344197410,17.39590094,127.94,127.9,0.66037592]
[1767344197609,5.85347733,127.93,127.9,0.66037592]
[1767344197791,17.39590094,127.94,127.9,0.66037592]
[1767344197990,5.8534787,127.93,127.9,0.66037592]
[1767344198192,25.21208203,127.94,127.9,0.66037592]
[1767344198392,5.85418534,127.93,127.9,0.66037592]
[1767344198594,3.17590094,127.93,127.9,0.66037592]
[1767344198902,22.03618109,127.94,127.9,0.66037592]
[1767344199104,9.03016685,127.93,127.9,0.66037592]
[1767344199285,3.17590094,127.93,127.9,0.66037592]
[1767344201416,3.17590094,127.92,127.9,0.66037592]
[1767344201916,3.17590094,127.93,127.9,0.66037592]
[1767344204311,22.03618109,127.94,127.9,0.66037592]
[1767344204497,9.03257607,127.93,127.9,0.66037592]
[1767344204699,3.17590094,127.93,127.9,0.66037592]
[1767344206101,22.03618109,127.94,127.9,0.66037592]
[1767344206399,9.0330513,127.93,127.9,0.66037592]
[1767344206599,3.17590094,127.93,127.9,0.66037592]
[1767344206798,3.17590094,127.92,127.9,0.66037592]
[1767344209221,4.0628791,127.97,127.92,0.66037592]
[1767344209520,9.0335306,127.96,127.93,0.66037592]
[1767344209723,3.17590094,127.96,127.93,0.66037592]
[1767344210020,7.81435812,127.97,127.93,0.66037592]
[1767344210021,3.17590094,127.95,127.93,0.66037592]
[1767344214618,2.03019115,127.95,127.93,0.66037592]
[1767344220611,2.03019115,127.94,127.91,8.49134232]
[1767344220818,2.03019115,127.94,127.92,0.67354151]
[1767344228741,7.81516871,127.96,127.89,19.54767661]
[1767344228742,2.03019115,127.93,127.89,0.67354151]
[1767344229032,2.03019115,127.91,127.89,0.67354151]
[1767344229643,14.22,127.95,127.87,21.58017456]
[1767344229938,13.66864843,127.94,127.9,0.67354151]
[1767344230132,7.88245779,127.93,127.9,0.67354151]
[1767344230336,22.0358809,127.95,127.9,0.67354151]
[1767344230647,2.03019115,127.93,127.9,0.67354151]
[1767344231832,2.03019115,127.92,127.9,0.67354151]
[1767344232243,2.03019115,127.93,127.9,0.67354151]
[1767344248327,2.03019115,127.92,127.89,8.53442132]
[1767344248930,2.03019115,127.92,127.89,7.81911174]
[1767344249126,2.03019115,127.92,127.9,0.71530958]
[1767344252860,2.03019115,127.91,127.9,0.71530958]
[1767344253229,2.03019115,127.91,127.89,0.71530958]
[1767344254962,2.03019115,127.92,127.89,0.71530958]
[1767344255438,2.03019115,127.91,127.89,0.71530958]
[1767344256257,2.03019115,127.92,127.89,0.71530958]
[1767344256467,2.03019115,127.93,127.9,0.71530958]
[1767344257875,7.88697306,127.92,127.9,0.71530958]
[1767344258170,2.03019115,127.92,127.9,0.71530958]
[1767344258862,2.03019115,127.92,127.88,7.81961429]
[1767344259161,2.00019115,127.92,127.89,0.71530958]
[1767344259856,1.97019115,127.92,127.89,0.71530958]
[1767344260268,2.03019115,127.91,127.89,0.71530958]
[1767344261748,7.81616382,127.94,127.89,0.71530958]
[1767344262052,2.03019115,127.92,127.89,0.71530958]
[1767344262863,2.03019115,127.92,127.9,0.71530958]
[1767344263070,2.03019115,127.93,127.9,0.71530958]
[1767344263250,5.86026112,127.92,127.9,0.71530958]
[1767344263455,2.03019115,127.93,127.9,0.71530958]
[1767344267473,2.03019115,127.92,127.9,0.71530958]
[1767344268866,2.03019115,127.93,127.9,0.71530958]
[1767344271772,2.03019115,127.92,127.9,0.71530958]
[1767344272663,2.03019115,127.93,127.9,0.71530958]
[1767344273166,7.81616382,127.94,127.9,0.71530958]
[1767344273365,7.31144514,127.93,127.9,0.71530958]
[1767344273564,2.03019115,127.93,127.9,0.71530958]
[1767344275363,5.86799617,127.92,127.9,0.71530958]
[1767344275664,2.03019115,127.93,127.9,0.71530958]
[1767344275865,5.86799617,127.92,127.9,0.71530958]
[1767344276065,2.03019115,127.93,127.9,0.71530958]
[1767344276364,5.86799617,127.92,127.9,0.71530958]
[1767344276552,3.17340253,127.93,127.9,0.71530958]
[1767344276750,5.86801361,127.92,127.9,0.71530958]
[1767344276975,3.17340253,127.93,127.9,0.71530958]
[1767344277156,5.86801364,127.92,127.9,0.71530958]
[1767344277356,3.17340253,127.93,127.9,0.71530958]
[1767344277578,5.86802655,127.92,127.9,0.71530958]
[1767344277779,3.17340253,127.93,127.9,0.71530958]
[1767344277979,5.86802793,127.92,127.9,0.71530958]
[1767344278180,5.86802793,127.91,127.9,0.71530958]
[1767344278387,3.17340253,127.93,127.9,0.71530958]
[1767344278958,3.17340253,127.93,127.91,0.70116996]
[1767344279158,3.17340253,127.94,127.91,0.70116996]
[1767344279353,3.17340253,127.93,127.91,0.70116996]
[1767344282185,7.81494216,127.96,127.91,0.70116996]
[1767344282479,3.17340253,127.93,127.91,0.70116996]
[1767344283272,3.17340253,127.94,127.91,0.70116996]
[1767344283987,3.17340253,127.94,127.92,0.70116996]
[1767344287188,7.81494216,127.96,127.92,0.70116996]
[1767344287389,3.17340253,127.94,127.92,0.70116996]
[1767344287585,3.17340253,127.93,127.91,0.70116996]
[1767344287967,7.81494216,127.96,127.91,0.70116996]
[1767344288170,3.17340253,127.93,127.91,0.70116996]
[1767344291203,7.81494216,127.96,127.91,0.70116996]
[1767344291397,3.17340253,127.93,127.91,0.70116996]
[1767344297511,7.81561437,127.95,127.91,0.70116996]
[1767344297821,3.17340253,127.93,127.91,0.70116996]
[1767344298718,7.81494216,127.96,127.91,0.70116996]
[1767344299030,3.17340253,127.93,127.91,0.70116996]
[1767344301623,3.17340253,127.94,127.91,0.70116996]
[1767344301806,5.86444424,127.93,127.91,0.70116996]
[1767344302124,3.17340253,127.94,127.91,0.70116996]
[1767344311126,3.17340253,127.93,127.91,0.70116996]
[1767344311831,3.17340253,127.93,127.89,83.23890286]
[1767344311832,3.17340253,127.92,127.9,0.71009899]
[1767344312217,33.93979007,127.96,127.9,0.71009899]
[1767344312524,3.17340253,127.92,127.9,0.71009899]
[1767344314419,3.17340253,127.91,127.9,0.71009899]
[1767344315520,9.03848114,127.91,127.88,0.71009899]
[1767344315719,3.17340253,127.9,127.88,0.71009899]
[1767344316329,7.81798265,127.92,127.88,0.71009899]
[1767344316522,3.17340253,127.89,127.88,0.71009899]
[1767344316724,7.81798265,127.92,127.88,0.71009899]
[1767344316917,3.17340253,127.9,127.88,0.71009899]
[1767344321052,3.17340253,127.9,127.87,0.71009899]
[1767344321349,7.81798265,127.92,127.87,0.71009899]
[1767344321551,3.17340253,127.9,127.87,0.71009899]
[1767344321712,7.81798265,127.92,127.87,0.71009899]
[1767344322041,3.17340253,127.9,127.87,0.71009899]
[1767344322744,3.17340253,127.9,127.87,7.82042222]
[1767344322921,3.17340253,127.9,127.88,0.71009899]
[1767344324232,3.17340253,127.94,127.9,0.71009899]
[1767344324437,3.7476316,127.93,127.91,0.71009899]
[1767344324662,3.17340253,127.93,127.91,0.71009899]
[1767344325857,7.81555295,127.95,127.91,0.71009899]
[1767344326156,3.17340253,127.93,127.91,0.71009899]
[1767344336457,2.03081103,127.93,127.91,0.71009899]
[1767344340987,41.57254673,127.97,127.91,0.71009899]
[1767344341283,2.03081103,127.95,127.92,0.65429074]
[1767344341464,5.85846449,127.94,127.92,0.65429074]
[1767344341773,7.81520752,127.96,127.92,0.65429074]
[1767344341978,7.88877327,127.95,127.92,0.65429074]
[1767344342176,5.85796224,127.94,127.92,0.65429074]
[1767344342376,7.81520752,127.96,127.92,0.65429074]
[1767344342582,7.8885858,127.95,127.92,0.65429074]
[1767344342748,5.85777477,127.94,127.92,0.65429074]
[1767344342954,7.81520752,127.96,127.92,0.65429074]
[1767344343177,7.88858778,127.95,127.92,0.65429074]
[1767344343476,5.85777675,127.94,127.92,0.65429074]
[1767344343677,7.81520752,127.96,127.92,0.65429074]
[1767344343879,7.88840244,127.95,127.92,0.65429074]
[1767344344075,5.85759141,127.94,127.92,0.65429074]
[1767344344274,2.03081103,127.95,127.92,0.65429074]
[1767344344573,5.85741111,127.94,127.92,0.65429074]
[1767344344754,2.03081103,127.95,127.92,0.65429074]
[1767344344956,5.85741309,127.94,127.92,0.65429074]
[1767344345253,7.81520752,127.96,127.92,0.65429074]
[1767344345449,2.03081103,127.97,127.93,0.65429074]
[1767344345669,5.85640772,127.96,127.93,0.65429074]
[1767344345873,7.81372089,127.98,127.93,0.65429074]
[1767344346061,7.88706296,127.97,127.93,0.65429074]
[1767344346364,2.03081103,127.97,127.93,0.65429074]
[1767344348675,2.03081103,127.97,127.94,0.65429074]
[1767344348878,22.03337207,127.99,127.94,7.81606496]
[1767344349071,2.03081103,127.97,127.95,0.65429074]
[1767344349458,2.03081103,127.98,127.95,0.65429074]
[1767344349659,2.03081103,127.97,127.95,0.65429074]
[1767344352477,2.03081103,127.97,127.92,19.54308935]
[1767344352781,7.8138764,127.98,127.92,19.54308935]
[1767344352782,2.03081103,127.96,127.93,0.65429074]
[1767344357684,2.03081103,127.96,127.93,7.81676725]
[1767344357989,2.03081103,127.96,127.94,0.65429074]
[1767344360600,14.22,127.99,127.95,2.03081103]
[1767344360761,2.13081103,128.0,127.96,0.65429074]
[1767344360965,0.1,128.0,127.96,0.65429074]
[1767344361159,2.03081103,127.99,127.96,0.65429074]
[1767344362789,0.1,128.0,127.96,7.81492509]
[1767344363090,2.03081103,127.99,127.97,0.65429074]
[1767344368987,0.1,128.0,127.97,0.65429074]
[1767344369188,2.03081103,127.99,127.97,0.65429074]
[1767344369890,2.13081103,128.0,127.97,0.65429074]
[1767344370507,2.03081103,127.99,127.97,0.65429074]
[1767344370906,0.1,128.0,127.97,0.65429074]
[1767344371101,2.03081103,127.99,127.97,0.65429074]
[1767344373097,0.1,128.0,127.97,0.65429074]
[1767344373098,2.03081103,127.98,127.97,0.65429074]
[1767344373396,0.1,128.0,127.97,0.65429074]
[1767344373607,2.03081103,127.99,127.97,0.65429074]
[1767344377211,0.1,128.0,127.97,0.65429074]
[1767344377402,2.03081103,127.99,127.97,0.65429074]
[1767344377703,2.03081103,127.98,127.94,0.67452835]
[1767344377906,2.03081103,127.96,127.94,0.67452835]
[1767344382014,2.03081103,127.96,127.93,0.67452835]
[1767344382215,27.44316919,128.0,127.94,0.67452835]
[1767344382216,7.91191919,128.0,127.94,0.67452835]
[1767344382388,7.91191919,128.0,127.97,0.67452835]
[1767344382699,2.03081103,127.98,127.97,0.67452835]
[1767344382908,2.03081103,127.98,127.95,0.67452835]
[1767344384005,2.03081103,127.97,127.95,0.67452835]
[1767344389011,7.91296367,128.0,127.95,0.67452835]
[1767344389212,2.03081103,127.98,127.95,0.67452835]
[1767344390126,2.03081103,127.98,127.95,7.81528325]
[1767344390422,2.03081103,127.98,127.96,0.67452835]
[1767344391808,2.03081103,127.98,127.95,8.48981581]
[1767344392329,2.03081103,127.97,127.95,0.67452835]
[1767344394027,7.91304205,128.0,127.95,0.67452835]
[1767344394235,2.03081103,127.97,127.95,0.67452835]
[1767344398550,3.17137573,127.97,127.95,0.67452835]
[1767344399149,7.9125,128.0,127.95,0.67452835]
[1767344399351,3.17137573,127.97,127.95,0.67452835]
[1767344400049,7.9125,128.0,127.95,0.67452835]
[1767344400235,11.12571226,127.99,127.95,0.67452835]
[1767344400443,5.85563803,127.98,127.95,0.67452835]
[1767344400645,7.9125,128.0,127.95,0.67452835]
[1767344400825,3.17154726,127.97,127.95,0.67452835]
[1767344402431,3.17154726,127.97,127.93,19.54109072]
[1767344402432,3.17154726,127.96,127.93,0.71267197]
[1767344402631,3.17154726,127.95,127.93,0.71267197]
[1767344403047,3.17154726,127.96,127.93,0.71267197]
[1767344403375,3.17154726,127.97,127.94,8.52878973]
[1767344403531,3.17154726,127.97,127.94,0.71267197]
[1767344403932,14.22,127.99,127.94,0.71267197]
[1767344404137,9.02821261,127.98,127.94,0.71267197]
[1767344404341,3.17154726,127.97,127.94,0.71267197]
[1767344407054,22.0336305,127.99,127.94,0.71267197]
[1767344407259,9.02866147,127.98,127.95,0.71267197]
[1767344407462,3.17154726,127.97,127.95,0.71267197]
[1767344409057,7.81315194,127.99,127.95,0.71267197]
[1767344409267,3.17154726,127.97,127.95,0.71267197]
[1767344409572,7.81315194,127.99,127.95,0.71267197]
[1767344409768,3.17154726,127.97,127.95,0.71267197]
[1767344411883,7.81315194,127.99,127.95,0.71267197]
[1767344412050,3.17154726,127.97,127.95,0.71267197]
[1767344412867,3.17154726,127.97,127.94,0.71267197]
[1767344414253,3.17154726,127.97,127.94,8.52883209]
[1767344414451,3.17154726,127.97,127.95,0.71267197]
[1767344418978,7.81315194,127.99,127.95,0.71267197]
[1767344419168,3.17154726,127.97,127.95,0.71267197]
[1767344419750,7.81315194,127.99,127.95,0.71267197]
[1767344419950,11.13640994,127.98,127.95,0.71267197]
[1767344420155,9.03274943,127.97,127.95,0.71267197]
[1767344420359,3.17154726,127.97,127.95,0.71267197]
[1767344420979,7.81382019,127.98,127.95,0.71267197]
[1767344421152,9.03332418,127.97,127.95,0.71267197]
[1767344421481,3.17154726,127.97,127.95,0.71267197]
[1767344422982,7.81311039,127.99,127.95,0.71267197]
[1767344423272,3.17154726,127.97,127.95,0.71267197]
[1767344423761,3.17154726,127.96,127.95,0.71267197]
[1767344424157,3.17154726,127.96,127.94,0.71267197]
[1767344425564,3.17154726,127.97,127.94,0.71267197]
[1767344427567,3.17154726,127.97,127.95,0.69236823]
[1767344429082,3.17154726,127.96,127.93,0.69236823]
[1767344429291,3.17154726,127.95,127.93,0.69236823]
[1767344430389,3.17154726,127.94,127.92,0.69236823]
[1767344431285,3.17154726,127.93,127.9,0.69236823]
[1767344431506,5.86276987,127.92,127.87,0.69236823]
[1767344431794,3.17154726,127.89,127.87,0.69236823]
[1767344432689,3.17154726,127.9,127.87,0.69236823]
[1767344434174,3.17154726,127.9,127.88,0.69236823]
[1767344434781,3.17154726,127.91,127.88,0.69236823]
[1767344435165,38.02061118,127.96,127.88,0.69236823]
[1767344435366,3.17154726,127.92,127.89,0.69236823]
[1767344435582,3.17154726,127.9,127.86,7.82068756]
[1767344435785,3.17154726,127.9,127.88,0.5]